bitfinex-derivatives/quotes_BTCF0:USTF0_20210708
["timestamp","ask_amount","ask_price","bid_price","bid_amount"]
[1625718582729,0.85226088,33177.0,33176.0,3.94409927]
[1625718583403,0.85226088,33177.0,33176.0,4.64944196]
[1625718585477,0.85226088,33177.0,33176.0,4.40886652]
[1625718585580,0.85226088,33177.0,33176.0,2.9922629]
[1625718585903,0.85226088,33177.0,33176.0,1.76215426]
[1625718586405,0.85226088,33177.0,33176.0,0.70946146]
[1625718587833,0.85226088,33177.0,33176.0,0.00411877]
[1625718587834,2.59770787,33177.0,33176.0,0.00411877]
[1625718588433,3.81892584,33177.0,33176.0,0.00411877]
[1625718588582,3.81892584,33177.0,33174.0,0.00411654]
[1625718588882,3.6889,33172.0,33171.0,0.53084437]
[1625718589185,3.7459,33172.0,33171.0,0.03064437]
[1625718589333,3.7459,33172.0,33171.0,0.03476101]
[1625718589484,4.79213145,33172.0,33171.0,0.00411664]
[1625718589635,6.01282495,33172.0,33168.0,0.002]
[1625718589784,6.01282495,33172.0,33167.0,1.0586404]
[1625718589938,1.04591383,33169.0,33165.0,1.05868933]
[1625718590087,0.057,33168.0,33165.0,1.05868933]
[1625718590384,0.057,33168.0,33166.0,0.0041131]
[1625718590987,0.72172632,33167.0,33164.0,1.06217106]
[1625718591288,0.057,33166.0,33164.0,1.05805838]
[1625718591588,0.057,33166.0,33163.0,1.0613016]
[1625718591739,4.8718,33164.0,33163.0,1.0613016]
[1625718591887,4.9288,33164.0,33163.0,1.0613016]
[1625718592037,4.9288,33164.0,33163.0,1.06541421]
[1625718592788,4.9288,33164.0,33161.0,1.23423115]
[1625718592941,4.9288,33164.0,33160.0,1.41053621]
[1625718592942,0.48115088,33162.0,33154.0,0.24057544]
[1625718593165,0.76610088,33162.0,33154.0,0.24057544]
[1625718593315,0.057,33161.0,33160.0,1.23426207]
[1625718593465,0.057,33161.0,33160.0,0.42196207]
[1625718593614,0.057,33161.0,33157.0,0.00410876]
[1625718593764,0.057,33161.0,33160.0,0.00410925]
[1625718594064,0.057,33161.0,33158.0,0.00410946]
[1625718594238,0.057,33161.0,33160.0,0.00410962]
[1625718594515,0.057,33161.0,33157.0,0.004]
[1625718594825,0.057,33161.0,33158.0,0.00410977]
[1625718594970,0.48115088,33159.0,33158.0,0.00410977]
[1625718595116,0.53815088,33159.0,33157.0,0.004]
[1625718597370,0.53815088,33159.0,33154.0,0.002]
[1625718598194,5.0989,33155.0,33154.0,0.002]
[1625718598348,5.41107,33155.0,33154.0,0.002]
[1625718599095,5.89222088,33155.0,33154.0,0.002]
[1625718599849,5.63705088,33155.0,33154.0,0.002]
[1625718600002,5.58005088,33155.0,33154.0,0.002]
[1625718600300,0.48115088,33155.0,33154.0,0.002]
[1625718600600,0.48115088,33155.0,33154.0,0.00610955]
[1625718600750,0.48115088,33155.0,33154.0,3.99470955]
[1625718600903,0.48115088,33155.0,33154.0,3.9906]
[1625718601051,0.48115088,33155.0,33154.0,4.23528494]
[1625718603381,0.48115088,33155.0,33154.0,5.8199672]
[1625718603682,0.48115088,33155.0,33154.0,4.23528494]
[1625718604131,0.48115088,33155.0,33154.0,4.23117544]
[1625718604281,0.48115088,33155.0,33154.0,4.23528265]
[1625718605183,0.48115088,33155.0,33154.0,4.23117544]
[1625718605332,0.48115088,33155.0,33154.0,4.23528253]
[1625718605783,0.48115088,33155.0,33154.0,5.82018694]
[1625718606233,0.48115088,33155.0,33154.0,4.23117544]
[1625718606383,0.48115088,33155.0,33154.0,4.23328249]
[1625718606838,0.48115088,33155.0,33154.0,4.22917544]
[1625718606987,0.48115088,33155.0,33154.0,4.50710241]
[1625718607288,0.48115088,33155.0,33154.0,6.09173611]
[1625718608190,0.48115088,33155.0,33154.0,7.49609849]
[1625718608414,0.48115088,33155.0,33154.0,7.50020774]
[1625718609014,0.48115088,33155.0,33154.0,7.51258438]
[1625718609915,0.001,33157.0,33154.0,7.51258438]
[1625718610083,0.001,33157.0,33156.0,2.99275163]
[1625718610518,0.001,33157.0,33156.0,2.99686066]
[1625718610668,0.001,33157.0,33156.0,3.00923493]
[1625718610816,0.24057544,33159.0,33156.0,3.00923493]
[1625718610970,0.24057544,33159.0,33156.0,2.99686066]
[1625718611117,0.24057544,33159.0,33158.0,1.6486903]
[1625718611268,0.24057544,33159.0,33158.0,3.23281145]
[1625718611568,0.24057544,33159.0,33158.0,3.23692043]
[1625718612846,0.24057544,33159.0,33158.0,3.249292]
[1625718613296,0.002,33162.0,33158.0,3.249292]
[1625718613463,0.002,33162.0,33158.0,3.749292]
[1625718613627,0.002,33162.0,33161.0,4.22363699]
[1625718613765,0.002,33162.0,33161.0,4.96930435]
[1625718613899,0.002,33162.0,33161.0,5.49720692]
[1625718614058,0.002,33162.0,33161.0,5.50131472]
[1625718614496,0.002,33162.0,33161.0,6.50131472]
[1625718614646,0.002,33162.0,33161.0,8.26973651]
[1625718615099,0.002,33162.0,33161.0,7.75088739]
[1625718615398,0.002,33162.0,33161.0,8.75088739]
[1625718615850,0.002,33162.0,33161.0,10.8620198]
[1625718616974,0.003,33167.0,33161.0,10.8620198]
[1625718617125,0.003,33167.0,33166.0,6.9895964]
[1625718617274,0.003,33167.0,33166.0,8.4895964]
[1625718617427,0.003,33167.0,33166.0,8.50195539]
[1625718617574,0.003,33167.0,33166.0,7.51493218]
[1625718618174,0.003,33167.0,33166.0,8.60533218]
[1625718618325,0.004,33172.0,33166.0,8.60533218]
[1625718618326,0.002,33170.0,33166.0,8.60533218]
[1625718618626,0.002,33170.0,33169.0,4.7493349]
[1625718618774,0.002,33170.0,33169.0,5.6029949]
[1625718618924,0.002,33170.0,33169.0,9.49795993]
[1625718619076,0.003,33175.0,33169.0,9.49795993]
[1625718619225,0.003,33175.0,33174.0,3.16622122]
[1625718619675,0.003,33175.0,33174.0,3.17032316]
[1625718621099,0.003,33175.0,33174.0,3.65147404]
[1625718622901,0.003,33175.0,33174.0,4.70688137]
[1625718627333,0.001,33178.0,33174.0,4.70688137]
[1625718627559,0.001,33178.0,33177.0,2.81434997]
[1625718627708,0.001,33178.0,33177.0,3.10455997]
[1625718628008,0.001,33178.0,33177.0,3.10866208]
[1625718629662,0.001,33178.0,33177.0,2.81845208]
[1625718629971,0.001,33178.0,33177.0,1.58717397]
[1625718630267,0.001,33178.0,33177.0,0.53179273]
[1625718630713,0.001,33178.0,33177.0,0.00410211]
[1625718631988,0.001,33178.0,33176.0,0.76833373]
[1625718631989,0.001,33178.0,33176.0,0.24057544]
[1625718632138,0.2267,33178.0,33176.0,0.24057544]
[1625718632302,0.057,33177.0,33176.0,0.24057544]
[1625718634767,0.057,33177.0,33176.0,0.24467633]
[1625718635067,0.057,33177.0,33174.0,0.24057544]
[1625718635217,0.48115088,33175.0,33174.0,0.24057544]
[1625718635387,0.53815088,33175.0,33174.0,0.24057544]
[1625718635516,0.53815088,33175.0,33174.0,0.24467225]
[1625718635816,0.53815088,33175.0,33174.0,0.24057544]
[1625718636569,0.53815088,33175.0,33174.0,0.24467265]
[1625718636721,6.13733952,33175.0,33174.0,0.24467265]
[1625718636870,5.61895088,33175.0,33174.0,0.24467265]
[1625718637169,5.61895088,33175.0,33174.0,0.00409721]
[1625718637170,6.13733619,33175.0,33174.0,0.00409721]
[1625718637320,6.13733619,33175.0,33173.0,0.001]
[1625718637620,0.51826845,33174.0,33173.0,0.001]
[1625718637770,0.57526845,33174.0,33173.0,0.001]
[1625718638071,0.57526845,33174.0,33173.0,0.00509738]
[1625718638373,0.57526845,33174.0,33173.0,0.001]
[1625718638674,0.57526845,33174.0,33173.0,0.00509755]
[1625718638822,0.57526845,33174.0,33173.0,0.001]
[1625718639123,1.61126655,33174.0,33173.0,0.001]
[1625718639273,2.81929455,33174.0,33173.0,0.001]
[1625718639422,3.05986999,33174.0,33173.0,0.001]
[1625718641377,4.44048436,33174.0,33173.0,0.001]
[1625718647455,5.99167625,33174.0,33173.0,0.001]
[1625718647606,4.44048436,33174.0,33173.0,0.001]
[1625718648207,3.05986999,33174.0,33173.0,0.001]
[1625718648357,3.05986999,33174.0,33170.0,0.001]
[1625718648358,4.44041711,33174.0,33170.0,0.001]
[1625718648658,1.55323972,33171.0,33170.0,0.001]
[1625718648807,1.61023972,33171.0,33170.0,0.001]
[1625718649409,3.50799778,33171.0,33170.0,0.001]
[1625718649559,2.54095604,33171.0,33170.0,0.001]
[1625718650315,1.50552041,33171.0,33170.0,0.001]
[1625718651059,2.54074436,33171.0,33170.0,0.001]
[1625718656315,3.74944385,33171.0,33170.0,0.001]
[1625718656467,2.54074436,33171.0,33170.0,0.001]
[1625718656841,3.74892546,33171.0,33170.0,0.001]
[1625718657146,2.54074436,33171.0,33170.0,0.001]
[1625718657296,2.54074436,33171.0,33167.0,0.001]
[1625718657592,0.24057544,33168.0,33167.0,0.001]
[1625718657753,0.29757544,33168.0,33167.0,0.001]
[1625718658120,0.29757544,33168.0,33167.0,0.00510456]
[1625718658358,0.29757544,33168.0,33167.0,0.001]
[1625718658646,0.29757544,33168.0,33167.0,0.00510456]
[1625718658943,4.22577544,33168.0,33167.0,0.00510456]
[1625718662414,4.44668544,33168.0,33167.0,0.00510456]
[1625718663383,4.22577544,33168.0,33167.0,0.00510456]
[1625718666237,4.22577544,33168.0,33167.0,0.00410456]
[1625718666684,4.22577544,33168.0,33166.0,0.00409824]
[1625718667134,4.74422637,33168.0,33166.0,0.00409824]
[1625718667435,4.22577544,33168.0,33166.0,0.00409824]
[1625718667961,4.74419504,33168.0,33166.0,0.00409824]
[1625718668110,0.34561199,33167.0,33166.0,0.00409824]
[1625718668262,0.40261199,33167.0,33166.0,0.00409824]
[1625718668561,0.92087002,33167.0,33166.0,0.00409824]
[1625718668864,0.40261199,33167.0,33166.0,0.00409824]
[1625718669013,0.40261199,33167.0,33165.0,0.3566936]
[1625718669191,0.057,33167.0,33166.0,0.35668018]
[1625718669353,0.057,33167.0,33166.0,2.51990275]
[1625718669542,0.057,33167.0,33166.0,3.75382003]
[1625718669844,0.057,33167.0,33166.0,2.51990275]
[1625718670743,0.057,33167.0,33166.0,3.75370695]
[1625718672545,0.057,33167.0,33166.0,3.74960549]
[1625718674128,0.24057544,33168.0,33166.0,5.15968813]
[1625718674276,0.24057544,33168.0,33166.0,5.16856099]
[1625718674433,0.24057544,33168.0,33167.0,3.52512742]
[1625718674575,0.24057544,33168.0,33167.0,3.52922801]
[1625718675703,0.24057544,33168.0,33167.0,3.76980345]
[1625718676301,0.24057544,33168.0,33167.0,4.12344345]
[1625718676755,0.24057544,33168.0,33167.0,5.53379169]
[1625718677051,0.24057544,33168.0,33167.0,5.54266419]
[1625718677351,0.24057544,33168.0,33167.0,5.53379169]
[1625718677654,0.24057544,33168.0,33167.0,5.54266395]
[1625718677955,0.24057544,33168.0,33167.0,7.12933534]
[1625718678865,0.001,33170.0,33167.0,7.12933534]
[1625718679029,0.001,33170.0,33168.0,0.0123911]
[1625718679168,0.001,33170.0,33169.0,6.52416348]
[1625718679324,0.001,33170.0,33169.0,7.03655336]
[1625718679605,0.001,33170.0,33169.0,7.53067449]
[1625718680207,0.001,33170.0,33169.0,7.03067449]
[1625718681712,0.001,33170.0,33169.0,7.02180366]
[1625718682461,0.001,33170.0,33169.0,7.53067433]
[1625718682612,0.002,33175.0,33169.0,7.53067433]
[1625718682763,0.002,33175.0,33169.0,7.03067433]
[1625718682914,0.002,33175.0,33174.0,4.93858311]
[1625718683213,0.002,33175.0,33174.0,4.94268242]
[1625718683664,0.002,33175.0,33174.0,5.4238333]
[1625718683814,0.002,33175.0,33174.0,5.7513333]
[1625718687417,0.002,33178.0,33174.0,5.7513333]
[1625718687717,0.002,33178.0,33177.0,4.93882309]
[1625718688167,0.002,33178.0,33177.0,4.94292287]
[1625718689820,0.0932,33178.0,33177.0,4.94292287]
[1625718689970,0.002,33178.0,33177.0,4.94292287]
[1625718690571,0.002,33178.0,33177.0,3.53183056]
[1625718695751,0.002,33178.0,33177.0,4.94251343]
[1625718696351,0.24057544,33180.0,33177.0,4.94251343]
[1625718696652,0.24057544,33180.0,33179.0,2.29210025]
[1625718696952,0.24057544,33180.0,33179.0,2.29619997]
[1625718697552,0.24057544,33180.0,33179.0,3.53022077]
[1625718697701,0.24057544,33180.0,33179.0,3.77079621]
[1625718697851,0.24057544,33180.0,33179.0,2.53677541]
[1625718698233,0.24057544,33180.0,33179.0,3.77063493]
[1625718698980,0.24057544,33180.0,33179.0,2.53677541]
[1625718700932,0.29757544,33180.0,33179.0,2.53677541]
[1625718701383,0.29757544,33180.0,33179.0,1.47888299]
[1625718701832,0.57241544,33180.0,33179.0,1.47888299]
[1625718701983,4.26741544,33180.0,33179.0,1.47888299]
[1625718704913,4.26741544,33180.0,33179.0,0.77362137]
[1625718705137,4.26741544,33180.0,33179.0,1.4786135]
[1625718705438,4.26741544,33180.0,33179.0,0.77362137]
[1625718705814,4.26741544,33180.0,33179.0,1.47861864]
[1625718706115,4.26741544,33180.0,33179.0,0.77362137]
[1625718706341,4.78743493,33180.0,33179.0,0.77350017]
[1625718706641,4.44081301,33180.0,33179.0,1.12604345]
[1625718708594,4.78756819,33180.0,33179.0,1.12604345]
[1625718709268,4.44081301,33180.0,33179.0,1.12604345]
[1625718709418,4.44081301,33180.0,33179.0,0.77349344]
[1625718710168,4.44081301,33180.0,33179.0,1.47875461]
[1625718710620,4.78746367,33180.0,33179.0,0.77349344]
[1625718710920,4.78746367,33180.0,33179.0,1.12613021]
[1625718712045,4.78746367,33180.0,33179.0,0.77349344]
[1625718712346,4.78746367,33180.0,33179.0,1.12615555]
[1625718712497,4.78746367,33180.0,33179.0,0.77349344]
[1625718714301,5.13414284,33180.0,33179.0,0.77349344]
[1625718715203,5.13414284,33180.0,33179.0,1.4790362]
[1625718716101,4.78749218,33180.0,33179.0,1.4790362]
[1625718717155,5.13438543,33180.0,33179.0,1.4790362]
[1625718718052,5.13438543,33180.0,33179.0,2.5379228]
[1625718720004,4.78749218,33180.0,33179.0,2.5379228]
[1625718720980,5.13471342,33180.0,33179.0,2.5379228]
[1625718723382,4.78818648,33180.0,33179.0,2.5379228]
[1625718723533,5.1350611,33180.0,33179.0,2.5379228]
[1625718724436,4.78783986,33180.0,33179.0,2.5379228]
[1625718724884,5.481775,33180.0,33179.0,2.5379228]
[1625718726776,5.13507726,33180.0,33179.0,3.77459625]
[1625718727074,4.78783986,33180.0,33179.0,3.77459625]
[1625718727370,5.48279162,33180.0,33179.0,3.77459625]
[1625718727966,6.52503467,33180.0,33179.0,3.77459625]
[1625718731045,7.74238693,33180.0,33179.0,3.77459625]
[1625718732320,9.13262055,33180.0,33179.0,2.29734736]
[1625718732471,9.13262055,33180.0,33179.0,0.53509969]
[1625718732771,10.69545814,33180.0,33179.0,0.62360043]
[1625718733071,10.69545814,33180.0,33179.0,0.53509969]
[1625718733220,10.69545814,33180.0,33179.0,0.62363232]
[1625718733976,10.93603358,33180.0,33179.0,0.62363232]
[1625718734800,10.93603358,33180.0,33179.0,0.26963234]
[1625718735400,10.93603358,33180.0,33179.0,0.00409972]
[1625718736300,10.93603358,33180.0,33178.0,0.0041061]
[1625718736602,6.42075714,33179.0,33178.0,0.0041061]
[1625718736755,6.47775714,33179.0,33178.0,0.0041061]
[1625718736904,6.47775714,33179.0,33177.0,0.00410603]
[1625718737205,6.47775714,33179.0,33178.0,0.00410612]
[1625718737355,0.057,33179.0,33178.0,0.00410612]
[1625718737505,6.47315607,33179.0,33178.0,0.00410612]
[1625718737654,6.47315607,33179.0,33177.0,0.00410612]
[1625718737955,6.65641,33178.0,33177.0,0.00410612]
[1625718739311,6.71341,33178.0,33177.0,0.00410612]
[1625718747050,6.71341,33178.0,33176.0,0.001]
[1625718747349,6.40459993,33177.0,33174.0,0.001]
[1625718747500,4.84659301,33175.0,33174.0,0.001]
[1625718747650,5.25642301,33175.0,33174.0,0.001]
[1625718747949,5.25642301,33175.0,33174.0,0.00510507]
[1625718748099,5.49699845,33175.0,33174.0,0.00510507]
[1625718749525,7.05399804,33175.0,33174.0,0.00510507]
[1625718749975,7.05399804,33175.0,33174.0,0.001]
[1625718752391,0.65040544,33175.0,33174.0,0.001]
[1625718752534,7.04100658,33175.0,33174.0,0.001]
[1625718756510,7.04100658,33175.0,33171.0,0.001]
[1625718756809,4.83164234,33172.0,33171.0,0.001]
[1625718758086,6.92152975,33172.0,33171.0,0.001]
[1625718759062,5.36979322,33172.0,33171.0,0.001]
[1625718760189,5.36979322,33172.0,33171.0,0.00510505]
[1625718761466,5.31279322,33172.0,33171.0,0.00510505]
[1625718761767,3.98939792,33172.0,33171.0,0.00510505]
[1625718762217,3.93239792,33172.0,33171.0,0.00510505]
[1625718762386,2.72453047,33172.0,33171.0,0.00510505]
[1625718762594,2.72453047,33172.0,33171.0,0.00510449]
[1625718762968,2.78153047,33172.0,33171.0,0.00510449]
[1625718765146,2.72453047,33172.0,33171.0,0.00510449]
[1625718765300,2.72453047,33172.0,33171.0,0.09332558]
[1625718765595,1.68919086,33172.0,33171.0,0.26976769]
[1625718765746,1.68919086,33172.0,33171.0,0.53442792]
[1625718765895,1.68919086,33172.0,33171.0,4.32352792]
[1625718766045,1.08665615,33172.0,33171.0,5.02927208]
[1625718766195,1.00005662,33172.0,33171.0,5.02927208]
[1625718766497,1.34568777,33172.0,33171.0,5.02927208]
[1625718766719,1.00003826,33172.0,33171.0,5.02927208]
[1625718767169,1.34576687,33172.0,33171.0,5.02927208]
[1625718767470,1.00005798,33172.0,33171.0,5.02927208]
[1625718768296,1.00005798,33172.0,33171.0,5.02827208]
[1625718768447,1.08665387,33172.0,33171.0,5.02827208]
[1625718768670,1.00005798,33172.0,33171.0,5.02827208]
[1625718769119,1.34577132,33172.0,33171.0,5.02827208]
[1625718769420,0.99989178,33172.0,33171.0,5.02827208]
[1625718769570,1.00010896,33172.0,33171.0,5.02827208]
[1625718771900,1.5190274,33172.0,33171.0,5.02827208]
[1625718772049,1.34598375,33172.0,33171.0,5.02827208]
[1625718772199,1.00015892,33172.0,33171.0,5.02827208]
[1625718772499,1.00015892,33172.0,33171.0,6.08726578]
[1625718772500,0.74089746,33172.0,33171.0,6.08726578]
[1625718772838,0.74089746,33172.0,33171.0,7.32273459]
[1625718772839,0.24057544,33172.0,33171.0,7.32273459]
[1625718773103,1.10729692,33175.0,33171.0,8.73463859]
[1625718773104,0.001,33175.0,33171.0,8.73463859]
[1625718773414,0.001,33175.0,33174.0,3.52972522]
[1625718773709,1.03988772,33181.0,33174.0,4.94156737]
[1625718773896,1.3894592,33185.0,33180.0,1.0588341]
[1625718773897,1.04055182,33184.0,33180.0,1.0588341]
[1625718774031,1.04055182,33184.0,33180.0,1.4049341]
[1625718774159,1.21694822,33185.0,33183.0,3.01562782]
[1625718774160,0.003,33185.0,33183.0,3.01562782]
[1625718774301,0.003,33185.0,33184.0,1.05871797]
[1625718774750,0.003,33185.0,33184.0,1.06284113]
[1625718774902,0.003,33185.0,33184.0,2.29796026]
[1625718776176,0.003,33185.0,33184.0,2.5385357]
[1625718778057,0.003,33185.0,33184.0,1.30341657]
[1625718778655,0.003,33185.0,33184.0,0.2446986]
[1625718778817,1.04262242,33185.0,33184.0,0.2446986]
[1625718778974,1.09962242,33185.0,33184.0,0.24057544]
[1625718779106,2.31199716,33185.0,33184.0,0.24057544]
[1625718779255,6.93699716,33185.0,33184.0,0.24057544]
[1625718779557,8.32184046,33185.0,33184.0,0.24057544]
[1625718779705,8.66713046,33185.0,33184.0,0.24057544]
[1625718779856,8.57563046,33185.0,33184.0,0.24057544]
[1625718780305,8.8132059,33185.0,33184.0,0.24057544]
[1625718783311,7.4283626,33185.0,33184.0,0.24057544]
[1625718783985,6.15898786,33185.0,33184.0,0.24057544]
[1625718784139,5.81369786,33185.0,33184.0,0.24057544]
[1625718784585,4.77407544,33185.0,33184.0,0.24057544]
[1625718788791,4.77407544,33185.0,33184.0,0.24470728]
[1625718789091,4.77407544,33185.0,33184.0,0.24057544]
[1625718789391,4.77407544,33185.0,33184.0,0.24470729]
[1625718803507,0.24057544,33185.0,33184.0,0.24470729]
[1625718803807,0.001,33189.0,33184.0,0.24470729]
[1625718804111,0.001,33189.0,33185.0,0.00413405]
[1625718804258,0.001,33189.0,33185.0,0.22750405]
[1625718804559,0.001,33189.0,33188.0,0.48115088]
[1625718805009,0.001,33189.0,33188.0,0.48528454]
[1625718806287,0.001,33189.0,33188.0,2.77171955]
[1625718806438,0.001,33189.0,33188.0,2.78058605]
[1625718806963,0.001,33189.0,33188.0,4.18746461]
[1625718807113,0.001,33189.0,33188.0,4.27896461]
[1625718807267,1.04185438,33202.0,33188.0,4.27896461]
[1625718807413,1.04185438,33202.0,33200.0,5.399]
[1625718807563,1.04649233,33204.0,33200.0,5.73481]
[1625718807864,0.004,33204.0,33201.0,0.00413213]
[1625718808464,0.004,33204.0,33203.0,0.72172632]
[1625718808916,0.004,33204.0,33203.0,0.72586151]
[1625718811546,0.005,33209.0,33203.0,0.72586151]
[1625718811995,1.04367829,33213.0,33203.0,0.72586151]
[1625718812219,1.21783493,33218.0,33203.0,0.72586151]
[1625718812220,1.04388336,33216.0,33204.0,0.00413445]
[1625718812522,1.04388336,33216.0,33215.0,0.72172632]
[1625718812673,1.04388336,33216.0,33215.0,0.95929632]
[1625718814326,0.057,33217.0,33215.0,0.95929632]
[1625718814327,1.10300118,33217.0,33215.0,0.95929632]
[1625718814552,1.10300118,33217.0,33216.0,0.24057544]
[1625718815377,3.71841701,33217.0,33216.0,0.24057544]
[1625718815909,2.32354019,33217.0,33216.0,0.24057544]
[1625718816207,3.71938026,33217.0,33216.0,0.24057544]
[1625718817555,2.32354019,33217.0,33216.0,0.24057544]
[1625718818007,1.10300118,33217.0,33216.0,0.24057544]
[1625718818833,2.32720644,33217.0,33216.0,0.24057544]
[1625718819585,1.10300118,33217.0,33216.0,0.24057544]
[1625718819732,1.04600118,33217.0,33216.0,0.24057544]
[1625718820181,1.10300118,33217.0,33216.0,0.24057544]
[1625718820481,1.35781118,33217.0,33216.0,0.24057544]
[1625718820632,2.58252554,33217.0,33216.0,0.24057544]
[1625718821083,3.9813096,33217.0,33216.0,0.24057544]
[1625718821533,5.55533548,33217.0,33216.0,0.24057544]
[1625718822361,5.55533548,33217.0,33215.0,0.24157544]
[1625718822362,5.55533548,33217.0,33215.0,0.001]
[1625718822661,5.72505569,33216.0,33211.0,0.24057544]
[1625718822810,0.057,33215.0,33211.0,0.24057544]
[1625718822960,3.67118153,33212.0,33211.0,0.24057544]
[1625718823263,8.74668153,33212.0,33210.0,0.002]
[1625718823413,3.6722326,33211.0,33210.0,0.002]
[1625718823564,3.7292326,33211.0,33210.0,0.002]
[1625718824543,1.10623429,33211.0,33210.0,0.002]
[1625718824690,1.28980973,33211.0,33210.0,0.002]
[1625718825000,0.24057544,33211.0,33210.0,0.002]
[1625718828380,0.24057544,33211.0,33209.0,0.24157544]
[1625718828678,1.53455717,33216.0,33209.0,0.48215088]
[1625718828825,1.53455717,33216.0,33209.0,0.75264088]
[1625718829432,1.53455717,33216.0,33214.0,3.7826]
[1625718829904,0.48215088,33216.0,33214.0,3.7826]
[1625718830554,0.001,33216.0,33214.0,3.7826]
[1625718830707,0.001,33216.0,33215.0,0.48115088]
[1625718830859,0.001,33216.0,33215.0,0.48527598]
[1625718835665,0.001,33216.0,33215.0,0.48115088]
[1625718835810,0.001,33216.0,33215.0,0.48527585]
[1625718837430,0.001,33221.0,33215.0,0.48527585]
[1625718837690,0.001,33221.0,33216.0,0.00412526]
[1625718838742,0.001,33221.0,33220.0,0.24057544]
[1625718839344,0.001,33221.0,33220.0,0.24470065]
[1625718840695,0.001,33221.0,33220.0,0.48527609]
[1625718846250,0.058,33226.0,33220.0,0.48527609]
[1625718846777,0.058,33226.0,33225.0,0.48115088]
[1625718848207,0.001,33226.0,33225.0,0.78525088]
[1625718848357,0.001,33226.0,33225.0,0.78938168]
[1625718851058,0.001,33226.0,33225.0,0.48528168]
[1625718851359,0.001,33226.0,33225.0,0.48115088]
[1625718852786,0.24157544,33226.0,33225.0,0.48115088]
[1625718852934,0.29857544,33226.0,33225.0,0.48115088]
[1625718853235,0.51917544,33226.0,33225.0,0.48115088]
[1625718853539,1.2198955,33226.0,33225.0,0.48115088]
[1625718853988,2.2713452,33226.0,33225.0,0.48115088]
[1625718855412,2.2703452,33226.0,33225.0,0.48527839]
[1625718856011,2.2703452,33226.0,33225.0,0.48115088]
[1625718856012,3.49776688,33226.0,33225.0,0.48115088]
[1625718857441,3.49776688,33226.0,33220.0,0.24057544]
[1625718857592,4.90072693,33226.0,33219.0,0.002]
[1625718857743,0.70159973,33220.0,33219.0,0.002]
[1625718857893,0.75859973,33220.0,33219.0,0.002]
[1625718858047,3.03990547,33220.0,33219.0,0.002]
[1625718858195,3.03990547,33220.0,33219.0,0.00612832]
[1625718858343,1.81152357,33220.0,33219.0,0.002]
[1625718858494,3.03997976,33220.0,33219.0,0.002]
[1625718858643,3.03997976,33220.0,33219.0,0.00612859]
[1625718858792,3.52113064,33220.0,33219.0,0.00612859]
[1625718859170,8.31623064,33220.0,33219.0,0.00612859]
[1625718861120,7.08777445,33220.0,33219.0,0.00612859]
[1625718862772,6.03485061,33220.0,33219.0,0.00612859]
[1625718862997,7.08996305,33220.0,33219.0,0.00612859]
[1625718863448,2.29486305,33220.0,33219.0,0.00612859]
[1625718863972,2.82250119,33220.0,33219.0,0.00612859]
[1625718866002,2.76550119,33220.0,33219.0,0.00612859]
[1625718867277,2.76550119,33220.0,33219.0,0.00412859]
[1625718868027,1.71038875,33220.0,33219.0,0.00412859]
[1625718868178,1.71038875,33220.0,33219.0,0.52705561]
[1625718868402,1.71038875,33220.0,33219.0,1.22422924]
[1625718868701,1.00878902,33220.0,33219.0,1.22422924]
[1625718868927,1.00878902,33220.0,33219.0,1.46480468]
[1625718869377,0.48115088,33220.0,33219.0,2.50981148]
[1625718869835,0.48115088,33220.0,33219.0,3.728864]
[1625718870279,0.48115088,33220.0,33219.0,5.12182872]
[1625718870426,1.23358481,33224.0,33219.0,5.21302872]
[1625718870576,0.52870437,33224.0,33219.0,5.12182872]
[1625718870727,0.70598806,33225.0,33219.0,5.12182872]
[1625718870728,1.23477169,33225.0,33223.0,2.26223864]
[1625718870877,1.23477169,33225.0,33223.0,2.60545864]
[1625718871027,0.70598806,33225.0,33224.0,0.76264731]
[1625718871176,1.23468418,33225.0,33224.0,0.76677497]
[1625718871402,0.52969612,33225.0,33224.0,1.46266215]
[1625718871776,0.52969612,33225.0,33224.0,6.45846215]
[1625718872828,0.001,33225.0,33224.0,7.49784808]
[1625718872976,0.001,33225.0,33224.0,7.50197531]
[1625718874027,0.001,33225.0,33224.0,6.45846172]
[1625718874929,0.52955054,33225.0,33224.0,5.76257454]
[1625718875078,0.52955054,33225.0,33224.0,0.76677454]
[1625718875228,1.29123659,33225.0,33224.0,0.24470267]
[1625718875678,2.34814335,33225.0,33224.0,0.24470267]
[1625718876353,2.34714335,33225.0,33224.0,0.24470267]
[1625718876502,2.68556335,33225.0,33224.0,0.24470267]
[1625718877255,2.62856335,33225.0,33224.0,0.24470267]
[1625718877556,2.68556335,33225.0,33224.0,0.24470267]
[1625718878384,3.91888736,33225.0,33224.0,0.24470267]
[1625718878533,3.86188736,33225.0,33224.0,0.24470267]
[1625718879585,3.91888736,33225.0,33224.0,0.24470267]
[1625718879735,2.68556335,33225.0,33224.0,0.24470267]
[1625718879961,3.91900016,33225.0,33224.0,0.24470267]
[1625718880411,2.68556335,33225.0,33224.0,0.24470267]
[1625718880711,3.91902608,33225.0,33224.0,0.24470267]
[1625718882966,2.68556335,33225.0,33224.0,0.24470267]
[1625718883116,2.34714335,33225.0,33224.0,0.24470267]
[1625718883717,2.34714335,33225.0,33224.0,0.76729008]
[1625718883943,2.34714335,33225.0,33224.0,1.46466909]
[1625718883944,3.58241165,33225.0,33224.0,1.46466909]
[1625718884767,3.58241165,33225.0,33224.0,0.76729008]
[1625718885517,3.58241165,33225.0,33224.0,0.24470267]
[1625718885896,3.05386111,33225.0,33224.0,0.24470267]
[1625718886049,4.99598093,33225.0,33224.0,0.76825673]
[1625718888000,4.99598093,33225.0,33224.0,1.46615812]
[1625718888451,3.58361039,33225.0,33224.0,1.46615812]
[1625718888977,3.58361039,33225.0,33224.0,2.51288051]
[1625718890481,4.99684906,33225.0,33224.0,2.51288051]
[1625718891904,3.58361039,33225.0,33224.0,2.51288051]
[1625718892129,4.99679686,33225.0,33224.0,2.51288051]
[1625718892354,3.58361039,33225.0,33224.0,2.51288051]
[1625718893334,3.58361039,33225.0,33224.0,2.75885051]
[1625718893630,3.52661039,33225.0,33224.0,2.75885051]
[1625718895359,3.52661039,33225.0,33224.0,2.51288051]
[1625718900990,3.85642039,33225.0,33224.0,2.51288051]
[1625718901139,3.91342039,33225.0,33224.0,2.51288051]
[1625718901441,5.32658223,33225.0,33224.0,1.46615812]
[1625718901590,5.32658223,33225.0,33224.0,0.593167]
[1625718901890,5.32658223,33225.0,33224.0,0.24470267]